bitfinex-derivatives/quotes_BTCF0:USTF0_20240907
["timestamp","ask_amount","ask_price","bid_price","bid_amount"]
[1725706443082,0.091863,54437.0,54433.0,0.09145848]
[1725706443269,0.091863,54437.0,54425.0,0.14005848]
[1725706443270,0.091877,54429.0,54425.0,0.14005848]
[1725706443466,0.091877,54429.0,54425.0,0.0486]
[1725706443681,0.084877,54429.0,54425.0,0.0486]
[1725706443871,0.084877,54429.0,54425.0,0.140483]
[1725706444070,0.1,54434.0,54425.0,0.140483]
[1725706444381,0.091871,54432.0,54425.0,0.140483]
[1725706444569,0.091871,54432.0,54425.0,0.149483]
[1725706444876,0.091871,54432.0,54427.0,0.1]
[1725706445176,0.091876,54430.0,54426.0,0.1]
[1725706446168,0.01700428,54434.0,54429.0,0.1]
[1725706446379,0.091868,54434.0,54433.0,0.1]
[1725706447478,0.102868,54434.0,54433.0,0.101]
[1725706448276,0.011,54434.0,54433.0,0.101]
[1725706450081,0.011,54434.0,54433.0,0.001]
[1725706450082,0.11953027,54434.0,54433.0,0.001]
[1725706450385,0.102868,54434.0,54433.0,0.001]
[1725706459694,0.091872,54432.0,54430.0,0.091874]
[1725706459990,0.04491131,54432.0,54430.0,0.091874]
[1725706460186,0.091868,54434.0,54426.0,0.19145848]
[1725706460493,0.091868,54434.0,54432.0,0.09187]
[1725706461283,0.102868,54434.0,54433.0,0.001]
[1725706462790,0.091868,54434.0,54432.0,0.09187]
[1725706463091,0.101868,54434.0,54433.0,0.091869]
[1725706463689,0.091868,54434.0,54433.0,0.091869]
[1725706463892,0.102868,54434.0,54433.0,0.092869]
[1725706465091,0.102868,54434.0,54433.0,0.07398423]
[1725706465689,0.091868,54434.0,54433.0,0.07298423]
[1725706465991,0.094868,54434.0,54433.0,0.07298423]
[1725706466585,0.094868,54434.0,54427.0,0.091879]
[1725706466586,0.091876,54429.0,54428.0,0.09145848]
[1725706466786,0.091876,54429.0,54428.0,0.23145805]
[1725706467482,0.091876,54429.0,54428.0,0.13999957]
[1725706469180,0.091876,54429.0,54428.0,0.14299957]
[1725706469987,0.091876,54429.0,54428.0,0.13999957]
[1725706471491,0.091876,54429.0,54428.0,0.23187748]
[1725706471688,0.091876,54429.0,54428.0,0.34166018]
[1725706472395,0.094876,54429.0,54428.0,0.40228108]
[1725706472591,0.11133913,54429.0,54428.0,0.40228108]
[1725706473191,0.11533913,54429.0,54428.0,0.40328108]
[1725706476588,0.11533913,54429.0,54428.0,0.40328163]
[1725706479497,0.11533913,54429.0,54428.0,0.23287792]
[1725706480191,0.11533913,54429.0,54428.0,0.40328148]
[1725706481295,0.11533913,54429.0,54428.0,0.14100132]
[1725706482393,0.21533913,54429.0,54428.0,0.14100132]
[1725706482593,0.20833913,54429.0,54428.0,0.14000132]
[1725706482788,0.30721513,54429.0,54428.0,0.14100132]
[1725706482988,0.091885,54424.0,54423.0,0.10986915]
[1725706483189,0.091885,54424.0,54421.0,0.10986915]
[1725706483190,0.091888,54422.0,54421.0,0.10986915]
[1725706483390,0.1,54422.0,54421.0,0.23155514]
[1725706483692,0.1,54422.0,54418.0,0.10986915]
[1725706483693,0.1,54422.0,54418.0,0.09152729]
[1725706483893,0.191893,54419.0,54418.0,0.09153984]
[1725706484089,0.191893,54419.0,54417.0,0.09153984]
[1725706484295,0.1,54418.0,54417.0,0.09153984]
[1725706484495,0.1,54418.0,54416.0,0.09153984]
[1725706484701,0.1,54418.0,54415.0,0.09153984]
[1725706485495,0.1,54418.0,54414.0,0.18344084]
[1725706485697,0.1,54415.0,54414.0,0.18344084]
[1725706485896,0.1,54415.0,54414.0,0.32348083]
[1725706486504,0.1,54415.0,54414.0,0.071901]
[1725706486699,0.1,54415.0,54414.0,0.16344084]
[1725706486893,0.1,54415.0,54414.0,0.071901]
[1725706489098,0.191896,54418.0,54414.0,0.071901]
[1725706489300,0.191896,54418.0,54415.0,0.07308576]
[1725706490613,0.191896,54418.0,54414.0,0.14498676]
[1725706493401,0.191896,54418.0,54414.0,0.071901]
[1725706494203,0.191896,54418.0,54415.0,0.0919]
[1725706498419,0.0919,54415.0,54414.0,0.07308576]
[1725706499811,0.091902,54414.0,54412.0,0.091904]
[1725706500519,0.1,54415.0,54410.0,0.13703984]
[1725706500707,0.091901,54414.0,54413.0,0.07303272]
[1725706501118,0.091901,54414.0,54412.0,0.07303272]
[1725706501716,0.091903,54413.0,54412.0,0.07303272]
[1725706504913,0.04592644,54413.0,54412.0,0.07303272]
[1725706505307,0.04592644,54413.0,54411.0,0.091906]
[1725706508320,0.04592644,54413.0,54411.0,0.18344584]
[1725706508712,0.06281075,54413.0,54411.0,0.18344584]
[1725706509320,0.091905,54412.0,54411.0,0.091906]
[1725706509531,0.091905,54412.0,54411.0,0.32337601]
[1725706509918,0.091905,54412.0,54411.0,0.23195077]
[1725706510118,0.091905,54412.0,54411.0,0.23195045]
[1725706511416,0.10339909,54412.0,54411.0,0.23195045]
[1725706512530,0.10339909,54412.0,54411.0,0.3418196]
[1725706512926,0.418377,54429.0,54411.0,1.57521645]
[1725706513130,0.0114937,54421.0,54420.0,0.091891]
[1725706513335,0.0114937,54421.0,54420.0,0.27973545]
[1725706514617,0.1114937,54421.0,54420.0,0.14004445]
[1725706514829,0.1572937,54421.0,54420.0,0.23158406]
[1725706515022,0.1572937,54421.0,54420.0,0.23157179]
[1725706515639,0.2491837,54421.0,54420.0,0.09153961]
[1725706515819,0.2491837,54421.0,54416.0,0.091897]
[1725706516022,0.0114937,54420.0,54416.0,0.091897]
[1725706516221,0.0114937,54419.0,54416.0,0.091897]
[1725706516428,0.01149309,54418.0,54416.0,0.091897]
[1725706516741,0.01149309,54417.0,54416.0,0.091897]
[1725706522852,0.01149309,54417.0,54416.0,0.3417385]
[1725706524942,0.01149309,54417.0,54416.0,0.23192953]
[1725706526650,0.091895,54418.0,54416.0,0.23192953]
[1725706526867,0.0114932,54417.0,54416.0,0.091897]
[1725706527050,0.0114932,54417.0,54416.0,0.23193021]
[1725706528562,0.091895,54418.0,54416.0,0.23193021]
[1725706528769,0.091895,54418.0,54417.0,0.14003321]
[1725706529955,0.191895,54418.0,54417.0,0.14003321]
[1725706530150,0.1,54418.0,54414.0,0.09150334]
[1725706530452,0.091902,54414.0,54413.0,0.09152112]
[1725706530656,0.091902,54414.0,54413.0,0.23156553]
[1725706531065,0.091902,54414.0,54412.0,0.0452]
[1725706532068,0.091907,54411.0,54408.0,0.091911]
[1725706532565,0.091909,54410.0,54408.0,0.091911]
[1725706532767,0.10340318,54410.0,54408.0,0.091911]
[1725706532956,0.01149418,54409.0,54408.0,0.091911]
[1725706535666,0.10340418,54409.0,54408.0,0.091911]
[1725706537066,0.11875455,54409.0,54408.0,0.091911]
[1725706537568,0.10726037,54409.0,54408.0,0.091911]
[1725706537867,0.11875457,54409.0,54408.0,0.091911]
[1725706538065,0.11875457,54409.0,54408.0,0.40241553]
[1725706538066,0.02684457,54409.0,54408.0,0.40241553]
[1725706538456,0.02684457,54409.0,54408.0,0.23195643]
[1725706538857,0.11875457,54409.0,54408.0,0.23195643]
[1725706540855,0.10726037,54409.0,54408.0,0.23195643]
[1725706541054,0.11875456,54409.0,54408.0,0.23195643]
[1725706541470,0.11875456,54409.0,54408.0,0.23195576]
[1725706544260,0.10726037,54409.0,54408.0,0.23195576]
[1725706544465,0.11875455,54409.0,54408.0,0.40241453]
[1725706545269,0.11875455,54409.0,54408.0,0.40241494]
[1725706546166,0.11875455,54409.0,54408.0,0.091911]
[1725706547270,0.10726037,54409.0,54408.0,0.091911]
[1725706547568,0.11875456,54409.0,54408.0,0.091911]
[1725706550774,0.12375456,54409.0,54408.0,0.091911]
[1725706551177,0.11226037,54409.0,54408.0,0.091911]
[1725706551370,0.12375514,54409.0,54408.0,0.091911]
[1725706552269,0.11226037,54409.0,54408.0,0.091911]
[1725706552576,0.12375514,54409.0,54408.0,0.091911]
[1725706553077,0.07777604,54409.0,54408.0,0.23196335]
[1725706553582,0.0932879,54409.0,54408.0,0.249937]
[1725706553876,0.0932879,54409.0,54408.0,0.14005235]
[1725706554562,0.0932879,54409.0,54408.0,0.23196435]
[1725706554770,0.0932879,54409.0,54408.0,0.34186201]
[1725706555077,0.0932879,54409.0,54408.0,0.14005235]
[1725706555270,0.091912,54408.0,54407.0,0.10989766]
[1725706555469,0.10340677,54408.0,54407.0,0.34186443]
[1725706556687,0.10340677,54408.0,54407.0,0.23196677]
[1725706556976,0.11140677,54408.0,54407.0,0.23196677]
[1725706557571,0.11440677,54408.0,54407.0,0.23196677]
[1725706558173,0.11440677,54408.0,54407.0,0.14005377]
[1725706559473,0.11440677,54408.0,54407.0,0.3105242]
[1725706560482,0.11440677,54408.0,54407.0,0.14005474]
[1725706560877,0.102912,54408.0,54407.0,0.14005474]
[1725706561177,0.11440697,54408.0,54407.0,0.14005474]
[1725706562280,0.19487221,54408.0,54407.0,0.24998377]
[1725706563176,0.28678421,54408.0,54407.0,0.24998377]
[1725706563374,0.091913,54407.0,54405.0,0.09162752]
[1725706563576,0.091917,54405.0,54404.0,0.09162752]
[1725706563784,0.091917,54405.0,54398.0,0.091928]
[1725706563785,0.091918,54404.0,54403.0,0.09162752]
[1725706563982,0.28388596,54404.0,54403.0,0.23170192]
[1725706564175,0.09192,54403.0,54402.0,0.09162752]
[1725706564478,0.28388796,54403.0,54402.0,0.23170202]
[1725706565189,0.091922,54402.0,54401.0,0.09162752]
[1725706565477,0.091925,54400.0,54399.0,0.09162752]
[1725706565778,0.091927,54399.0,54398.0,0.09162752]
[1725706565969,0.091927,54399.0,54397.0,0.09162752]
[1725706565970,0.091928,54398.0,54397.0,0.09162752]
[1725706566170,0.091928,54398.0,54395.0,0.09162752]
[1725706566171,0.091932,54396.0,54395.0,0.09162752]
[1725706566481,0.091934,54395.0,54394.0,0.09162752]
[1725706566674,0.20342902,54395.0,54394.0,0.23171774]
[1725706566981,0.20342902,54395.0,54394.0,0.32365274]
[1725706566982,0.01149502,54395.0,54394.0,0.32365274]
[1725706567188,0.011,54398.0,54397.0,0.09193]
[1725706567378,0.02249683,54398.0,54397.0,0.09193]
[1725706567684,0.01149683,54398.0,54397.0,0.07293]
[1725706569282,0.191924,54401.0,54397.0,0.07293]
[1725706569688,0.01149758,54400.0,54397.0,0.07293]
[1725706569984,0.01149758,54399.0,54397.0,0.07293]
[1725706570189,0.01149758,54398.0,54397.0,0.07293]
[1725706570777,0.191924,54401.0,54397.0,0.07293]
[1725706570971,0.01149759,54400.0,54397.0,0.07293]
[1725706571176,0.01149759,54399.0,54397.0,0.07293]
[1725706571382,0.01149759,54398.0,54397.0,0.07293]
[1725706577599,0.091925,54400.0,54398.0,0.091927]
[1725706577788,0.080483,54399.0,54398.0,0.1467963]
[1725706578095,0.09198057,54399.0,54398.0,0.1467963]
[1725706578291,0.01590332,54402.0,54401.0,0.091923]
[1725706578594,0.53848,54426.0,54408.0,0.091911]
[1725706578595,0.09191,54409.0,54408.0,0.091911]
[1725706578793,0.00940019,54408.0,54406.0,0.15484891]
[1725706578995,0.00940019,54408.0,54407.0,0.19226191]
[1725706579690,0.091905,54412.0,54407.0,0.10034891]
[1725706579996,0.08046998,54411.0,54407.0,0.10034891]
[1725706580194,0.00935144,54410.0,54407.0,0.10034891]
[1725706580498,0.091905,54412.0,54410.0,0.091908]
[1725706580880,0.0452,54416.0,54413.0,0.091903]
[1725706581085,1.65250177,54464.0,54414.0,0.1]
[1725706581086,0.0461,54422.0,54414.0,0.1]
[1725706581385,0.091892,54420.0,54417.0,0.091895]
[1725706581589,0.091893,54419.0,54418.0,0.05482837]
[1725706582499,0.091893,54419.0,54417.0,0.05482837]
[1725706582684,0.1,54418.0,54417.0,0.05482837]
[1725706583082,0.1,54418.0,54416.0,0.05482837]
[1725706583294,0.1,54417.0,54416.0,0.05482837]
[1725706585283,0.1,54417.0,54413.0,0.16503488]
[1725706585284,0.1,54417.0,54415.0,0.05482837]
[1725706586593,0.01149372,54416.0,54415.0,0.05482837]
[1725706587296,0.1,54417.0,54415.0,0.05482837]
[1725706587595,0.091895,54418.0,54415.0,0.05482837]
[1725706587596,0.01149372,54416.0,54415.0,0.05482837]
[1725706588797,0.01149372,54416.0,54415.0,0.14672837]
[1725706590197,0.06789893,54416.0,54415.0,0.0919]
[1725706590906,0.07575925,54416.0,54415.0,0.0919]
[1725706591400,0.08725292,54416.0,54415.0,0.0919]
[1725706593094,0.07575925,54416.0,54415.0,0.0919]
[1725706593294,0.08725295,54416.0,54415.0,0.0919]
[1725706593704,0.07575941,54416.0,54415.0,0.0919]
[1725706594393,0.08725311,54416.0,54415.0,0.0919]
[1725706595400,0.07575941,54416.0,54415.0,0.0919]
[1725706596396,0.08725311,54416.0,54415.0,0.0919]
[1725706598298,0.03084774,54416.0,54415.0,0.0919]
[1725706601098,0.01935404,54416.0,54415.0,0.0919]
[1725706601294,0.01149436,54416.0,54415.0,0.0919]
[1725706604308,0.01997975,54417.0,54415.0,0.0919]
[1725706604501,0.01149434,54416.0,54415.0,0.0919]
[1725706605804,0.10339234,54416.0,54415.0,0.0919]
[1725706607803,0.1033919,54416.0,54415.0,0.0919]
[1725706608307,0.15979872,54416.0,54415.0,0.0919]
[1725706611109,0.14830482,54416.0,54415.0,0.0919]
[1725706611311,0.15979899,54416.0,54415.0,0.0919]
[1725706613313,0.10339217,54416.0,54415.0,0.0919]
[1725706614417,0.091903,54413.0,54410.0,1e-08]
[1725706614718,0.091908,54410.0,54409.0,0.0550222]
[1725706614924,0.091908,54410.0,54403.0,0.09153728]
[1725706614925,0.091912,54408.0,54407.0,0.0550222]
[1725706615114,0.091913,54407.0,54406.0,0.0550222]
[1725706615313,0.091917,54405.0,54404.0,0.0550222]
[1725706615515,0.091917,54405.0,54403.0,0.0550222]
[1725706615516,0.091918,54404.0,54403.0,0.0550222]
[1725706615713,0.091918,54404.0,54398.0,0.091927]
[1725706615714,0.01149507,54404.0,54398.0,0.091927]
[1725706615918,0.1,54399.0,54398.0,0.091927]
[1725706616229,0.11149507,54399.0,54398.0,0.091927]
[1725706616609,0.01149507,54399.0,54398.0,0.091927]
[1725706618118,0.01149688,54399.0,54398.0,0.091927]
[1725706622826,0.01987701,54400.0,54399.0,0.091927]
[1725706623027,0.0114968,54400.0,54399.0,0.091927]
[1725706623221,0.0114968,54400.0,54399.0,0.191927]
[1725706623818,0.09192,54404.0,54403.0,0.09192]
[1725706624017,0.11170147,54404.0,54403.0,0.09192]
[1725706624224,0.12319791,54404.0,54403.0,0.09192]
[1725706625534,0.03127791,54404.0,54403.0,0.09192]
[1725706627626,0.01149644,54404.0,54403.0,0.09192]
[1725706627825,0.01149644,54404.0,54403.0,0.18512]
[1725706628221,0.091908,54410.0,54409.0,0.09191]
[1725706628423,0.1034035,54410.0,54409.0,0.14679192]
[1725706629320,0.1034035,54410.0,54409.0,0.09191]
[1725706629929,0.12329026,54410.0,54409.0,0.09191]
[1725706630325,0.2037566,54410.0,54409.0,0.09191]
[1725706633935,0.1922611,54410.0,54409.0,0.09191]
[1725706634233,0.20375635,54410.0,54409.0,0.09191]
[1725706634424,0.091913,54408.0,54406.0,0.091914]
[1725706634629,0.09196159,54407.0,54406.0,0.091914]
[1725706635327,0.14837503,54407.0,54406.0,0.091914]
[1725706637331,0.06790869,54407.0,54406.0,0.091914]
[1725706637929,0.06790869,54407.0,54399.0,0.0458]
[1725706638129,0.30880869,54406.0,54402.0,0.091921]
[1725706638336,0.06790869,54405.0,54402.0,0.091921]
[1725706638634,0.06790869,54404.0,54402.0,0.091921]
[1725706638930,0.15982869,54403.0,54402.0,0.091921]
[1725706640826,0.25983045,54403.0,54402.0,0.091921]
[1725706641042,0.091922,54402.0,54400.0,1.50092]
[1725706641242,0.06791045,54401.0,54400.0,1.591925]
[1725706641541,0.15983345,54401.0,54400.0,1.5]
[1725706643542,0.10342001,54401.0,54400.0,1.5]
[1725706648245,0.091923,54401.0,54400.0,1.5]
[1725706648449,0.1034202,54401.0,54400.0,1.5]
[1725706650043,1.2549002,54401.0,54400.0,1.5]
[1725706650639,0.6549002,54401.0,54400.0,1.5]
[1725706651252,1.3468232,54401.0,54400.0,1.5]
[1725706651555,1.3468232,54401.0,54400.0,1.46458193]
[1725706651556,1.427249,54401.0,54400.0,1.46458193]
[1725706651753,1.5192433,54401.0,54400.0,1.38408691]
[1725706652453,1.56236624,54401.0,54400.0,1.38408691]
[1725706654953,1.55086696,54401.0,54400.0,1.38408691]
[1725706655158,1.56236641,54401.0,54400.0,1.38408691]
[1725706656660,1.56236643,54401.0,54400.0,1.38408691]
[1725706656960,1.55086696,54401.0,54400.0,1.31454587]
[1725706657149,1.55086696,54401.0,54400.0,1.27271587]
[1725706657747,1.56236604,54401.0,54400.0,1.27271587]
[1725706657948,1.55086696,54401.0,54400.0,1.19222227]
[1725706658249,1.56236645,54401.0,54400.0,1.19222227]
[1725706658548,1.68474265,54401.0,54400.0,1.19222227]
[1725706659749,1.67324316,54401.0,54400.0,1.19222227]
[1725706659945,1.68474263,54401.0,54400.0,1.19222227]
[1725706660358,1.68474263,54401.0,54400.0,1.17822227]
[1725706660556,1.61880021,54401.0,54400.0,1.17822227]
[1725706661750,1.61880031,54401.0,54400.0,1.17822227]
[1725706662956,1.61880031,54401.0,54400.0,1.16222227]
[1725706663549,1.01880031,54401.0,54400.0,1.16222227]
[1725706663856,0.93830529,54401.0,54400.0,1.14922227]
[1725706664554,0.93830529,54401.0,54400.0,0.90991227]
[1725706665450,0.88187141,54401.0,54400.0,0.90991227]
[1725706665862,0.33039141,54401.0,54400.0,0.90991227]
[1725706666058,0.88187141,54401.0,54400.0,0.90991227]
[1725706666263,0.33039141,54401.0,54400.0,0.90991227]
[1725706666463,1.48187141,54401.0,54400.0,0.90991227]
[1725706666659,1.48187141,54401.0,54400.0,0.89703227]
[1725706666963,1.4818714,54401.0,54400.0,0.89703227]
[1725706667162,0.2384684,54401.0,54400.0,0.89703227]
[1725706667462,0.8899484,54401.0,54400.0,0.89703227]
[1725706667660,0.97044464,54401.0,54400.0,0.89703227]
[1725706667955,0.41896464,54401.0,54400.0,0.89703227]
[1725706669954,0.41896424,54401.0,54400.0,0.89703227]
[1725706671563,0.32704124,54401.0,54400.0,0.89703227]
[1725706672251,0.2839183,54401.0,54400.0,0.89703227]
[1725706672565,0.32703885,54401.0,54400.0,0.89703227]
[1725706674670,0.24654261,54401.0,54400.0,0.89703227]
[1725706677865,0.32703431,54401.0,54400.0,0.89703227]
[1725706678966,0.32703406,54401.0,54400.0,0.89703227]
[1725706680574,0.47538754,54401.0,54400.0,0.89703227]
[1725706682667,0.38346454,54401.0,54400.0,0.8165405]
[1725706682859,0.47538754,54401.0,54400.0,0.8165405]
[1725706683061,0.37196573,54401.0,54400.0,0.8165405]
[1725706683265,0.38346455,54401.0,54400.0,0.8165405]
[1725706683469,0.47538755,54401.0,54400.0,0.8165405]
[1725706684459,0.38346455,54401.0,54400.0,0.8165405]
[1725706685279,0.47538755,54401.0,54400.0,0.8165405]
[1725706685577,0.62243542,54401.0,54400.0,0.8165405]
[1725706686163,0.43051242,54401.0,54400.0,0.8165405]
[1725706686362,0.23511025,54401.0,54400.0,0.8165405]
[1725706686877,0.23511025,54401.0,54400.0,0.8629405]
[1725706687175,0.1919897,54401.0,54400.0,0.8629405]
[1725706688063,0.2839127,54401.0,54400.0,0.8629405]
[1725706688676,0.2839127,54401.0,54400.0,0.7824546]
[1725706689981,0.28390994,54401.0,54400.0,0.7824546]
[1725706691180,0.32702847,54401.0,54400.0,0.7824546]
[1725706693080,0.31553047,54401.0,54400.0,0.7824546]
[1725706693280,0.32702867,54401.0,54400.0,0.7824546]
[1725706694773,0.32702867,54401.0,54400.0,0.70420915]
[1725706696577,0.21553047,54401.0,54400.0,0.70420915]
[1725706696782,0.32702852,54401.0,54400.0,0.70420915]
[1725706697468,0.28390999,54401.0,54400.0,0.70420915]
[1725706697881,0.28390999,54401.0,54400.0,0.55432674]
[1725706699674,0.27241194,54401.0,54400.0,0.55432674]
[1725706699889,0.28390998,54401.0,54400.0,0.55432674]
[1725706700674,0.28390998,54401.0,54400.0,0.48030057]
[1725706705184,0.37583298,54401.0,54400.0,0.48030057]
[1725706706476,0.37583298,54401.0,54400.0,0.00030057]
[1725706706684,0.37583304,54401.0,54400.0,0.00030057]
[1725706706881,0.41895284,54401.0,54400.0,0.00030057]
[1725706708288,0.41895352,54401.0,54400.0,0.00030057]
[1725706709075,0.091928,54398.0,54397.0,0.05501514]
[1725706709275,0.28391572,54398.0,54397.0,0.05501514]
[1725706709479,0.09193,54397.0,54396.0,0.05501514]
[1725706709684,0.32703752,54397.0,54396.0,0.05501514]
[1725706709887,0.37383752,54397.0,54396.0,0.05501514]
[1725706710097,0.36233874,54397.0,54396.0,0.05501514]
[1725706710392,0.37383752,54397.0,54396.0,0.05501514]
[1725706710593,0.091938,54393.0,54388.0,0.0466]
[1725706710891,0.1,54389.0,54388.0,0.0466]
[1725706711193,0.15461858,54389.0,54388.0,0.0466]
[1725706713493,0.1431198,54389.0,54388.0,0.0466]
[1725706713694,0.15461858,54389.0,54388.0,0.0466]
[1725706714198,0.11149878,54389.0,54388.0,0.0466]
[1725706715789,0.15461921,54389.0,54388.0,0.0466]
[1725706716292,0.24656321,54389.0,54388.0,0.0466]
[1725706718195,0.23506443,54389.0,54388.0,0.0466]
[1725706718392,0.191944,54389.0,54388.0,0.0466]
[1725706718593,0.08155569,54389.0,54388.0,0.35722812]
[1725706718787,0.18155569,54389.0,54388.0,0.35722812]
[1725706719296,0.31662046,54389.0,54388.0,0.18670117]
[1725706719491,0.4086175,54389.0,54387.0,0.09172796]
[1725706719693,0.22701077,54388.0,54387.0,0.09172796]
[1725706719896,0.13506577,54388.0,54387.0,0.2318437]
[1725706720297,0.091947,54387.0,54386.0,0.09172796]
[1725706720493,0.1,54387.0,54385.0,0.09172796]
[1725706720802,0.09195,54385.0,54384.0,0.09172796]
[1725706720989,0.19195,54385.0,54383.0,0.09172796]
[1725706721189,0.1,54384.0,54383.0,0.09172796]
[1725706722495,0.1,54384.0,54382.0,0.09172796]
[1725706724410,0.1,54384.0,54381.0,0.22978496]
[1725706724696,0.1,54384.0,54382.0,0.09172796]
[1725706725290,0.1,54384.0,54383.0,0.09172796]
[1725706725494,0.1,54384.0,54381.0,0.21134413]
[1725706726194,0.191952,54384.0,54381.0,0.21134413]
[1725706726398,0.21170772,54384.0,54381.0,0.21134413]
[1725706727099,0.01150044,54383.0,54381.0,0.21134413]
[1725706727298,0.01150044,54382.0,54381.0,0.21134413]
[1725706730096,0.10345544,54382.0,54381.0,0.21134413]
[1725706730496,0.10345544,54382.0,54381.0,0.138057]
[1725706732301,0.10345544,54382.0,54381.0,0.21134413]
[1725706733500,0.10345544,54382.0,54381.0,0.27817837]
[1725706734709,0.10345541,54382.0,54381.0,0.27817837]
[1725706734908,0.10345541,54382.0,54381.0,0.27817797]
[1725706736913,0.10345541,54382.0,54381.0,0.27817531]
[1725706741414,0.01150041,54382.0,54381.0,0.27817531]
[1725706741817,0.11170772,54384.0,54383.0,0.091954]
[1725706742004,0.091952,54384.0,54383.0,0.23207231]
[1725706745604,0.091952,54384.0,54383.0,0.23207253]
[1725706747615,0.12070251,54384.0,54383.0,0.23207253]
[1725706748509,0.12070251,54384.0,54383.0,0.091954]
[1725706749626,0.091952,54384.0,54383.0,0.091954]
[1725706750217,0.1,54385.0,54384.0,0.091952]
[1725706750412,0.091949,54386.0,54385.0,0.09195]
[1725706751127,0.21557625,54386.0,54385.0,0.09195]
[1725706755718,0.21557625,54386.0,54385.0,0.34216219]
[1725706758025,0.13507478,54386.0,54385.0,0.34216219]
[1725706759426,0.18227478,54386.0,54385.0,0.34216219]
[1725706760025,0.19377504,54386.0,54385.0,0.34216219]
[1725706760426,0.14657504,54386.0,54385.0,0.34216219]
[1725706761022,0.13507478,54386.0,54385.0,0.34216219]
[1725706761226,0.21557646,54386.0,54385.0,0.34216219]
[1725706763533,0.16957591,54386.0,54385.0,0.34216219]
[1725706765429,0.16957591,54386.0,54385.0,0.3421612]
[1725706767131,0.16957591,54386.0,54385.0,0.23206769]
[1725706768443,0.12362746,54386.0,54385.0,0.23206769]
[1725706769239,0.04312578,54386.0,54385.0,0.23206769]
[1725706770530,0.04312578,54386.0,54385.0,0.23206855]
[1725706770736,0.12362724,54386.0,54385.0,0.09195]
[1725706770935,0.14312578,54386.0,54385.0,0.09195]
[1725706771635,0.22362717,54386.0,54385.0,0.09195]
[1725706773035,0.22362732,54386.0,54385.0,0.09195]
[1725706773639,0.22362732,54386.0,54379.0,0.09196]
[1725706773836,0.1,54380.0,54379.0,0.09196]
[1725706774141,0.22362814,54380.0,54379.0,0.09196]
[1725706778633,0.12362814,54380.0,54379.0,0.40264805]
[1725706780040,0.04312578,54380.0,54379.0,0.40264805]
[1725706780246,0.15504494,54380.0,54379.0,0.40264805]
[1725706780436,0.15504494,54380.0,54379.0,0.2320882]
[1725706780631,0.11191916,54380.0,54379.0,0.23208907]
[1725706781645,0.01996016,54380.0,54379.0,0.23208907]
[1725706781840,0.1,54381.0,54379.0,0.23208907]
[1725706782044,0.1,54381.0,54380.0,0.25025367]
[1725706783344,0.1,54381.0,54380.0,0.14012929]
[1725706783747,0.11906485,54381.0,54380.0,0.14012929]
[1725706784140,0.11906485,54381.0,54380.0,0.25025367]
[1725706785447,0.16219401,54381.0,54380.0,0.25025367]
[1725706785748,0.16219401,54381.0,54379.0,0.09196]
[1725706785952,0.11906485,54381.0,54379.0,0.09196]
[1725706786251,0.04312913,54380.0,54379.0,0.09196]
[1725706786646,0.11906485,54381.0,54379.0,0.09196]
[1725706789448,0.04312913,54380.0,54379.0,0.09196]
[1725706792746,0.04312913,54380.0,54379.0,0.3422147]
[1725706795856,0.14312913,54380.0,54379.0,0.23209032]
[1725706796045,0.22363491,54380.0,54379.0,0.23209032]
[1725706796945,0.12363491,54380.0,54379.0,0.23209032]
[1725706797144,0.04312913,54380.0,54379.0,0.23209032]
[1725706797659,0.11102185,54381.0,54380.0,0.091959]
[1725706797851,0.11102185,54381.0,54380.0,0.23208932]
[1725706798858,0.11102185,54381.0,54380.0,0.34222727]
[1725706798859,0.01906485,54381.0,54380.0,0.34222727]
[1725706799152,0.091952,54385.0,54383.0,0.091952]
[1725706799355,0.091952,54385.0,54384.0,0.23191012]
[1725706800256,0.091952,54385.0,54384.0,0.23041012]
[1725706800749,0.1350797,54385.0,54383.0,0.091952]
[1725706800953,0.0431277,54384.0,54383.0,0.091952]
[1725706801755,0.1444,54393.0,54384.0,0.091952]
[1725706801756,0.01906679,54385.0,54384.0,0.091952]
[1725706801957,0.0431277,54386.0,54385.0,0.09195]
[1725706803355,0.0416277,54386.0,54385.0,0.09195]
[1725706804255,0.06101616,54386.0,54385.0,0.09195]
[1725706808060,0.01938846,54386.0,54385.0,0.09195]
[1725706808363,0.091947,54387.0,54386.0,0.091949]
[1725706808364,0.191947,54387.0,54386.0,0.091949]
[1725706808567,0.18907217,54387.0,54386.0,0.091949]
[1725706808862,0.14594679,54387.0,54386.0,0.091949]
[1725706809655,0.16552439,54387.0,54386.0,0.091949]
[1725706809963,0.24602535,54387.0,54386.0,0.091949]
[1725706811061,0.2575255,54387.0,54386.0,0.091949]
[1725706811373,0.21157871,54387.0,54386.0,0.091949]
[1725706811570,0.13107775,54387.0,54386.0,0.091949]
[1725706811866,0.11157844,54387.0,54386.0,0.091949]
[1725706812469,0.11157838,54387.0,54386.0,0.091949]
[1725706812771,0.10350087,54387.0,54386.0,0.091949]
[1725706813071,0.01955614,54391.0,54386.0,1.32212819]
[1725706813260,0.53848,54402.0,54390.0,0.1]
[1725706813261,0.091932,54396.0,54390.0,0.1]
[1725706813564,0.091932,54396.0,54395.0,0.1]
[1725706813757,0.21553872,54396.0,54395.0,0.1]
[1725706813956,0.1724201,54396.0,54395.0,0.1]
[1725706814967,0.1724201,54396.0,54395.0,0.191934]
[1725706815966,0.01958735,54397.0,54396.0,0.091932]
[1725706816171,0.091927,54399.0,54398.0,0.091928]
[1725706816464,0.17241345,54399.0,54398.0,0.091928]
[1725706816871,0.08048645,54399.0,54398.0,0.191928]
[1725706817062,0.418412,54408.0,54398.0,1.39155571]
[1725706817365,0.17238955,54407.0,54406.0,0.091915]
[1725706817574,0.17238955,54407.0,54406.0,0.14682682]
[1725706818160,0.01943132,54413.0,54412.0,0.091905]
[1725706818368,0.140102,54414.0,54412.0,0.091905]
[1725706818962,0.140102,54414.0,54413.0,0.091903]
[1725706819469,0.15971155,54414.0,54413.0,0.091903]
[1725706820956,0.06780955,54414.0,54413.0,0.091903]
[1725706822765,0.16780955,54414.0,54408.0,0.1]
[1725706822962,0.0287385,54409.0,54408.0,0.191912]
[1725706823271,0.16780955,54414.0,54411.0,0.091906]
[1725706825373,0.16780955,54414.0,54412.0,0.091905]
[1725706827071,0.1010534,54413.0,54409.0,0.091909]
[1725706827271,0.1,54410.0,54409.0,0.091909]